{"text_format":"1","workbook":"xlsx","n_sheets":1,"sheets":["Price Bid"],"not_rendered":{"charts":0,"images":1,"macros":1,"external_links":0,"defined_names":2,"comments":0,"pivot_tables":0},"unopened":[],"bounds":{"document_bytes":16777216,"sheet_cells":100000,"rows_first":2000,"rows_last":500,"rows_between":2000,"halvings":0,"cell_chars":16384,"cell_head_chars":4096},"cells_cut":0,"cells_raw":0,"read":"whole","date_system":"1900"}

{"sheet":"Price Bid","index":0,"n_rows":25,"n_cols":7,"rows_kept":25,"cut":false,"hidden":false,"merged":[[16,3,16,5],[17,2,17,6],[0,0,0,6],[1,0,1,6],[2,0,2,6],[3,0,3,6],[4,0,4,6],[19,0,22,0],[19,1,19,6],[20,1,20,6],[21,1,21,6],[22,1,22,6]]}
["    BHARAT HEAVY ELECTRICAL LIMITED , JHANSI              "]
["TOWNSHIP CIVIL DEPARTMENT"]
["PRICE BID (JS 146)"]
["Name of work: Operation and Maintenance of Swimming Pool in the Township premises of BHEL TP Jhansi."]
["Tender Enq No-TCX/TW/22/19"]
["Sl. No.","Description of Work","Itemwise % Allocation","Unit ","Quantity ","Rate (Rs.)","Amount (Rs.)"]
[1,"Checking identity card of member daily at gate for authorized entry at specified timings and ensures entry of card holder only.",{"$f":"+ROUND(6.289298%,8)","v":6.2892980000000001E-2},"Day",150,{"$f":"+ROUND(G7/E7,2)","v":0},{"$f":"+ROUND(C7*G17,2)","v":0}]
[2,"Cleaning of Toilets and wet mopping of floor (toilets and office) on daily basis.required material will be arranged by contractor.",{"$f":"+ROUND(7.187795%,8)","v":7.1877949999999996E-2},"Day",150,{"$f":"+ROUND(G8/E8,2)","v":0},{"$f":"+ROUND(C8*G17,2)","v":0}]
[3,"Sampling & Testing of pool water (pH value, quantity of chlorine, turbidity.) and making record as per direction of Engineer-in-charge.",{"$f":"+ROUND(8.894895%,8)","v":8.8948949999999999E-2},"Day",150,0,{"$f":"+ROUND(C9*G17,2)","v":0}]
[4,"Checking & operation of filtration plant as per specification.",{"$f":"+ROUND(8.086294%,8)","v":8.0862939999999994E-2},"Day",150,0,{"$f":"+ROUND(C10*G17,2)","v":0}]
[5,"Providing 2 nos. life guard to stand besides the pool attentively & keep watch on all the members. He shall wears a life jacket for saving life of members by jumping in water and catch them,  pull-out from pool and give first aid to them.",{"$f":"+ROUND(29.649586%,8)","v":0.29649586},"Per life guard perDay",300,0,{"$f":"+ROUND(C11*G17,2)","v":0}]
[6,"For disinfection mixing chemical (Bleaching , copper-sulphate, alum)  in pool water as per required quantity and specifications. Material required will be supplied by BHEL",{"$f":"+ROUND(4.492396%,8)","v":4.4923959999999999E-2},"Day",150,0,{"$f":"+ROUND(C12*G17,2)","v":0}]
[7,"Brushing in pool including connecting pipe in skimmer, operating motor,  mud cleaning from pool and taking out insects from water by net sieve.  (Cleaning of pool surface walls/floors) using brushes, detergent, bleaching powder and other T&P).   ",{"$f":"+ROUND(7.636998%,8)","v":7.6369980000000004E-2},"Day",150,0,{"$f":"+ROUND(C13*G17,2)","v":0}]
[8,"Maintaining lawns, flower beds, show plants and hedges. Cleaning surroundings removing bushes/wild growth. Daily cleaning of surface of water for remaining floating dirt, insects, leaves etc in every shift.",{"$f":"+ROUND(5.031401%,8)","v":5.0314009999999999E-2},"hours",150,0,{"$f":"+ROUND(C14*G17,2)","v":0}]
[9,"Dewatering of pool and cleaning of pool (as per requirement pool old water shall be replaced by fresh water from time to time. After dewatering, pool shall be  neatly cleaned by using brush and acid,  also all floor and wall are cleaned properly before  filling water in pool).   ",{"$f":"+ROUND(0.089847%,8)","v":8.9846999999999995E-4},"Job",5,0,{"$f":"+ROUND(C15*G17,2)","v":0}]
[10,"Providing the Coaching & training to the members for swimming of different style like- free style, back stroke, breast stroke and butter fly etc. in every shift. A professional trainer will be arranged by Contractor.",{"$f":"+ROUND(22.64149%,8)","v":0.2264149},"Day",150,0,{"$f":"+ROUND(C16*G17,2)","v":0}]
[null,"Total Amount (Rs.)",{"$f":"ROUND(SUM(C7:C16),8)","v":1},"Total amount quoted by bidder"]
[null,"IN WORDS",{"$f":"rup(G17)","v":0}]
[]
["Note:","1. GST extra as applicable"]
[null,"2. Bidder has to quote in above unlocked cell (G-17) only. Item rate shall be calculated automatically. Calculated item rates upto four decimal points may be adjusted w.r.t. gross total amount and it shall be the itemwise final rate for  execution of contract and all other purposes."]
[null,"3. Quoted gross total amount should be considered only if quoted in this excel sheet and print out of this should only be considered for evaluation.  If Price is quoted in any other format other than the Excel Sheet enclosed to the NIT , the offer of the bidder  will be rejected"]
[null,"4. The quantity of items in the BOQ are only tentative and approximate and are liable for variation up to any extent provided the total value of the Contract does not vary by more than 30% (Thirty percent)."]
[]
[null,null,null,null,"(Signature and Seal of Contractor)"]